[Event "Susha Chess Blitz 2022"]
[Site "Shusha"]
[Date "2022.09.24"]
[Round "3"]
[White "Yilmaz, Mustafa"]
[Black "Radjabov, Teimour"]
[Result "0-1"]
[ECO "D37"]
[WhiteElo "2633"]
[BlackElo "2747"]
[Annotator "TA"]
[PlyCount "113"]
[EventDate "2022.09.24"]
[EventType "tourn"]
[EventCountry "AZE"]
[SourceTitle "playchess.com"]
[Source "ChessBase"]
[SourceQuality "1"]
[TimeControl "180+2"]

{[%evp 13,113,12,12,11,10,10,14,8,12,22,20,12,27,-25,38,-64,-44,-62,-52,-74,50,51,45,-98,-24,-76,-44,-69,0,-265,0,0,0,-20,-12,-8,-15,-114,-17,-1,-134,-113,0,0,78,0,0,-129,-34,-517,-462,-434,-91,-85,-19,-49,0,0,0,-8,6299,6187,29976,29977,5459,285,276,243,209,0,494,429,528,379,6003,5940,29990,29982,29982,-1374,-1292,-29967,-29968,-5427,-4454,-29973,-29978,-29978,-29974,-29973,-29974,-29971,-11500,-29975,-29976,-29974,-29976,-29967,-12835,-29984,-29980,-2383]} 1. d4 {[%emt 0:00:01]} Nf6 {[%emt 0:00:00]} 2. c4 {[%emt 0:00:01]} e6 {[%emt 0:00:01]} 3. Nf3 {[%emt 0:00:01]} d5 {[%emt 0:00:02]} 4. Nc3 {[%emt 0:00:01]} Be7 {[%emt 0:00:01]} 5. Bf4 {[%emt 0:00:02]} O-O {[%emt 0:00:05]} 6. e3 {[%emt 0:00:01]} Nbd7 {[%emt 0:00:08]} 7. c5 {[%emt 0:00:03]} Nh5 {[%emt 0:00:09]} 8. Bd3 {[%emt 0:00:03] D37: Queen's Gambit Declined: 5 Bf4.} Nxf4 {[%emt 0:00:03]} 9. exf4 {[%emt 0:00:01]} c6 {[%emt 0:00:02]} 10. b4 {[%emt 0:00:08] The position is equal.} Qc7 {[%emt 0:00:03] is the legacy move (10...b6).} 11. g3 {[%emt 0:00:05]} a5 $5 {[%emt 0:00:06][%mdl 4] Exploring less charted territory.} 12. a3 {[%emt 0:00:20]} f6 {[%emt 0:00:05] [#]} 13. Qb1 $146 {[%emt 0:01:36]} (13. O-O $142) ({Predecessor:} 13. O-O e5 14. Qe2 e4 15. Nxe4 Rf7 16. Nc3 Nf8 17. f5 g6 18. Qc2 Kg7 19. b5 {½-½ (66) Onischuk,A (2641)-Vaganian,R (2664) Moscow 2002}) 13... Kh8 {[%emt 0:01:01]} (13... axb4 $11 14. axb4 Rxa1 15. Qxa1 e5) 14. Bxh7 {[%emt 0:00:51]} (14. b5 $14) 14... axb4 $15 {[%emt 0:00:55]} 15. Ne2 {[%emt 0:00:02]} f5 {[%emt 0:00:05]} 16. Bg6 {[%emt 0:00:03]} Rf6 {[%emt 0:00:12]} (16... bxa3 $17 17. O-O b6 18. cxb6 Qxb6 19. Qxb6 Nxb6) 17. Be8 $14 {[%emt 0:00:05]} bxa3 {[%emt 0:00:02][%cal Od7c5]} (17... Rxa3 18. Rxa3 bxa3 19. Bxd7 Bxd7 20. Qb4) 18. Ng5 {[%emt 0:00:08]} (18. O-O $14) 18... Nf8 {[%emt 0:00:01]} (18... Qa5+ $17 19. Kf1 b5) 19. Kf1 {[%emt 0:00:04]} (19. h4 $11) 19... Kg8 {[%emt 0:00:11]} (19... Qd8 $5 {[%cal Rd8e8]} 20. Bh5 (20. Nf7+ Rxf7 21. Bxf7 g6 $17) 20... b5 21. cxb6 Rb8 $17) 20. Qd3 {[%emt 0:00:03]} b6 {[%emt 0:00:01]} (20... Qd8 $15 21. Bh5 Qa5) 21. Kg2 $2 {[%emt 0:00:01][%mdl 8192]} (21. Rxa3 $11 {and White is okay.} Rb8 22. Rb3) 21... Ba6 $2 (21... bxc5 $19 22. dxc5 Bb7) 22. Qxa3 $11 {[%emt 0:00:03]} bxc5 {[%emt 0:00:11]} 23. dxc5 {[%emt 0:00:00][%cal Oa3c3]} (23. Qa4 $5 {[%cal Ra4c6]}) 23... e5 {[%emt 0:00:04]} ({Don't do} 23... Bb7 24. Qb4 Rxe8 25. Ra7 $14) 24. fxe5 {[%emt 0:00:01]} Qxe5 {[%emt 0:00:01]} 25. Nf4 {[%emt 0:00:02]} (25. Rhe1 $11) 25... Bf1+ {[%emt 0:00:02]} ({Much less strong is} 25... Rxe8 26. Rhe1 Qb8 27. Qxa6 Bxc5 28. h4 $14) (25... Qb8 $1 $17 {aiming for ...Bf1+.} 26. Rhb1 Qxe8) 26. Rhxf1 {[%emt 0:00:01]} Rxa3 {[%emt 0:00:01]} 27. Rxa3 {[%emt 0:00:01]} Bxc5 {[%emt 0:00:01]} ({Better is} 27... Qb8 $17 28. Rfa1 Qxe8) 28. Ra8 {[%emt 0:00:03]} g6 {[%emt 0:00:06]} (28... Qb2 $11) 29. Nxg6 {[%emt 0:00:03]} ({White should play} 29. Rc8 $16) 29... Nxg6 {[%emt 0:00:04]} 30. Bxg6+ {[%emt 0:00:04]} (30. Bf7+ $1 $11 {was the only way to keep the balance.} Kg7 31. Rg8+ Kh6 32. Bxg6) 30... Kg7 {[%emt 0:00:00]} ({Black should try} 30... Rf8 $17 31. Bh7+ Kg7 32. Rxf8 Kxf8) 31. Be8 $2 {[%emt 0:00:02][%mdl 8192]} (31. Re8 $15 Be7 32. Nf3) 31... f4 $19 {[%emt 0:00:02]} 32. Nf3 {[%emt 0:00:02]} Qe2 {[%emt 0:00:05]} (32... Qf5 $19 {is more deadly. Threatens to win with ...fxg3.} 33. Ra2 fxg3 34. fxg3 Be3) 33. Bh5 $17 {[%emt 0:00:01]} Qb2 {[%emt 0:00:08] Really sharp!} (33... fxg3 $17 34. hxg3 Rf8) 34. Rc8 {[%emt 0:00:02]} Re6 {[%emt 0:00:03]} (34... fxg3 $15 35. hxg3 Qc2 36. Rc7+ Kf8) 35. Rc7+ $11 {[%emt 0:00:01]} Kh6 {[%emt 0:00:00]} 36. Bg4 {[%emt 0:00:02]} Qc2 $2 {[%emt 0:00:09][%mdl 8192] Active counter play!} 37. Bxe6 $18 {[%emt 0:00:01]} Bb6 {[%emt 0:00:03]} 38. Rb7 {[%emt 0:00:01]} Bc5 {[%emt 0:00:01]} 39. Nh4 $2 {[%emt 0:00:07]} (39. g4 {White wants to mate with Bf5.} Qe2 40. Bf5) 39... Qe4+ {[%emt 0:00:01]} 40. Kg1 $1 {[%emt 0:00:01]} Qxe6 {[%emt 0:00:01] [#]} 41. Rc7 $2 {[%emt 0:00:01]} (41. Nf3 $1 $18) 41... Bb6 $2 {[%emt 0:00:01][%mdl 8192] [#]} (41... d4 $1 $11) 42. Re7 $3 {[%emt 0:00:02][%mdl 512]} Qh3 {[%emt 0:00:04]} (42... Bxf2+ 43. Rxf2 Qg8 44. Rxf4) (42... Qg8 43. Rb1) 43. Rfe1 {[%emt 0:00:01]} fxg3 $2 {[%emt 0:00:03]} (43... Bxf2+ 44. Kxf2 Qxh2+ 45. Kf1 Qh3+ 46. Ke2 fxg3) 44. R1e6+ {[%emt 0:00:01]} Kg5 {[%emt 0:00:01]} 45. Rg7+ {[%emt 0:00:02]} Kh5 {[%emt 0:00:04]} 46. hxg3 $4 {[%emt 0:00:02][%mdl 8192]} Qxe6 $19 {[%emt 0:00:01]} 47. Ng2 {[%emt 0:00:04] Prevents Qe1+.} Kh6 {[%emt 0:00:01]} 48. Rb7 {[%emt 0:00:01]} Bd4 {[%emt 0:00:02]} 49. Rc7 {[%emt 0:00:03]} c5 {[%emt 0:00:01]} 50. Kh2 Qe2 {[%emt 0:00:03]} 51. Rc6+ {[%emt 0:00:05]} Kg7 {[%emt 0:00:01]} 52. Rc7+ {[%emt 0:00:01]} Kf8 {[%emt 0:00:00]} 53. Nf4 {[%emt 0:00:01]} Qxf2+ 54. Kh3 Qf3 {[%emt 0:00:06]} 55. Ra7 {[%emt 0:00:07]} Ke8 {[%emt 0:00:00] ( -> ...c4)} 56. Rb7 {[%emt 0:00:02]} Bf2 {[%emt 0:00:02][%csl Gf2][%cal Rf3g3]} 57. Rg7 {Weighted Error Value: White=0.83/Black=0.91} 0-1

[Event "Susha Chess Blitz 2022"]
[Site "Shusha"]
[Date "2022.09.24"]
[Round "4"]
[White "Mamedyarov, Shakhriyar"]
[Black "Mamedov, Rauf"]
[Result "1-0"]
[ECO "A45"]
[WhiteElo "2757"]
[BlackElo "2646"]
[Annotator "TA"]
[PlyCount "39"]
[EventDate "2022.09.24"]
[EventType "tourn"]
[EventCountry "AZE"]
[SourceTitle "playchess.com"]
[Source "ChessBase"]
[SourceQuality "1"]
[TimeControl "180+2"]

{[%evp 9,39,25,60,31,52,35,38,52,84,81,104,73,125,129,134,124,155,110,218,214,264,270,264,249,535,512,549,548,560,508,520,488]} 1. d4 {[%emt 0:00:00]} Nf6 {[%emt 0:00:03]} 2. Nc3 {[%emt 0:00:01]} d6 {[%emt 0:00:13]} 3. e4 {[%emt 0:00:01]} e5 {[%emt 0:00:07]} 4. Nf3 {[%emt 0:00:04]} exd4 {[%emt 0:00:02]} 5. Nxd4 {[%emt 0:00:01]} g6 {[%emt 0:00:00]} 6. Bf4 {[%emt 0:00:21] C41: Philidor Defence.} Bg7 {[%emt 0:00:24]} 7. Qd2 {[%emt 0:00:01]} O-O {[%emt 0:00:07]} 8. O-O-O {[%emt 0:00:01] White is slightly better.} a6 {[%emt 0:00:02]} 9. f3 {[%emt 0:00:13] White is more active.} b5 {[%emt 0:00:10]} 10. Bh6 {[%emt 0:00:02]} b4 {[%emt 0:00:12] [#]} (10... Bxh6 $142 11. Qxh6 Bd7) 11. Bxg7 $1 $16 {[%emt 0:00:12]} Kxg7 {[%emt 0:00:03] [#]} 12. Nce2 $146 {[%emt 0:00:05]} ({Don't do} 12. Nd5 Nxd5 13. exd5 a5 $14) ({Predecessor:} 12. Nd5 c5 13. Nf5+ Bxf5 14. exf5 Nc6 15. Nxf6 Qxf6 16. Qxd6 Rfd8 17. Qxf6+ Kxf6 18. Rxd8 Nxd8 19. fxg6 fxg6 {1-0 (59) Garic,R (2244)-Trost,E (2184) Chess.com INT 2020}) 12... a5 {[%emt 0:00:04]} 13. g4 {[%emt 0:00:01]} Bd7 {[%emt 0:00:14]} (13... Nfd7 $16 {is a better defense.}) 14. h4 {[%emt 0:00:11][%cal Bh2h4,Bh4h5][%mdl 32]} Nc6 {[%emt 0:00:03]} 15. Nxc6 {[%emt 0:00:06]} Bxc6 {[%emt 0:00:01]} 16. h5 {[%emt 0:00:01] [#] Strongly threatening hxg6.} b3 $2 {[%emt 0:00:13]} (16... Qe7 {keeps fighting.} 17. Nd4 (17. hxg6 fxg6 18. Qh6+ Kh8 $18) 17... Bd7 18. hxg6 fxg6 19. Qh6+ Kh8 20. Qxg6 Rg8) 17. axb3 $18 {[%emt 0:00:26] White is clearly winning.} a4 {[%emt 0:00:02]} 18. Qc3 {[%emt 0:00:08]} axb3 {[%emt 0:00:07]} 19. Qxc6 {[%emt 0:00:07]} Nd7 {[%emt 0:00:18]} 20. Qc3+ {[%emt 0:00:10] White took control after the opening.  Weighted Error Value: White=0.12 (very precise) /Black=0.59} 1-0

[Event "Susha Chess Blitz 2022"]
[Site "Shusha"]
[Date "2022.09.24"]
[Round "4"]
[White "Radjabov, Teimour"]
[Black "Yilmaz, Mustafa"]
[Result "1-0"]
[ECO "D38"]
[WhiteElo "2747"]
[BlackElo "2633"]
[Annotator "TA"]
[PlyCount "69"]
[EventDate "2022.09.24"]
[EventType "tourn"]
[EventCountry "AZE"]
[SourceTitle "playchess.com"]
[Source "ChessBase"]
[SourceQuality "1"]
[TimeControl "180+2"]

{[%evp 16,69,0,0,0,1,0,0,0,-8,0,0,8,0,24,26,22,42,75,71,63,47,32,36,133,145,138,122,142,118,122,112,168,115,163,148,176,124,174,153,194,216,210,8,335,76,466,140,637,635,735,487,29983,29984,29972,29973]} 1. d4 {[%emt 0:00:01]} Nf6 {[%emt 0:00:00]} 2. Nf3 {[%emt 0:00:01]} d5 {[%emt 0:00:01]} 3. c4 {[%emt 0:00:01]} e6 {[%emt 0:00:01]} 4. Nc3 {[%emt 0:00:02]} Bb4 {[%emt 0:00:01]} 5. Bg5 {[%emt 0:00:12]} h6 {[%emt 0:00:01]} 6. Bxf6 {[%emt 0:00:03]} Qxf6 {[%emt 0:00:01]} 7. e3 {[%emt 0:00:09]} O-O {[%emt 0:00:02]} 8. a3 {[%emt 0:00:06]} Bxc3+ {[%emt 0:00:08]} 9. bxc3 {[%emt 0:00:01]} dxc4 {[%emt 0:00:16] D38: Queen's Gambit Declined: Ragozin Defence (4 Nf3 Bb4).} 10. Bxc4 {[%emt 0:00:01]} b6 {[%emt 0:00:00] [#]} 11. a4 $146 {[%emt 0:00:06]} ({Predecessor:} 11. O-O Bb7 12. Ne5 Qg5 13. g3 Nc6 14. h4 Qe7 15. Nxc6 Bxc6 16. Be2 e5 17. d5 {0-1 (65) Kaasen,T (2475)-Hammer,J (2628) Sandefjord 2017}) 11... Nc6 {[%emt 0:00:07] The position is equal.} 12. Bd3 {[%emt 0:00:07]} Bb7 {[%emt 0:00:05]} 13. O-O {[%emt 0:00:11]} Rfd8 {[%emt 0:00:06]} 14. Qe2 {[%emt 0:00:07]} Na5 {[%emt 0:00:27]} 15. Ne5 {[%emt 0:00:05]} c5 {[%emt 0:00:02]} 16. f4 {[%emt 0:00:01]} cxd4 {[%emt 0:00:33]} 17. cxd4 {[%emt 0:00:01]} g6 {[%emt 0:00:36]} 18. Qg4 {[%emt 0:00:04]} Qg7 {[%emt 0:00:13]} 19. Qh4 {[%emt 0:00:06]} Nc6 {[%emt 0:00:12]} (19... Rac8 $14) 20. Be4 $16 {[%emt 0:00:12] White has more active pieces.} Na5 {[%emt 0:00:36]} 21. Bxb7 {[%emt 0:00:02]} Nxb7 {[%emt 0:00:01]} 22. Rac1 {[%emt 0:00:01]} Nd6 {[%emt 0:00:10]} 23. Rc7 $1 {[%emt 0:00:01]} Rac8 {[%emt 0:00:06]} (23... a6 $16 24. Ra1 b5) 24. Rfc1 {[%emt 0:00:06]} (24. Rxa7 $18 Ra8 25. Rc7) 24... g5 {[%emt 0:00:01]} (24... Rf8 $16 25. Qe1 Rxc7 26. Rxc7 Rc8 27. Rxa7 Qf8) 25. fxg5 $18 {[%emt 0:00:09]} hxg5 {[%emt 0:00:01] [#]} 26. Qe1 {[%emt 0:00:24]} (26. Qg3 $1 $18) 26... Rxc7 {[%emt 0:00:01]} (26... Qh7 $16 27. h3 (27. Rxa7 Rxc1 28. Qxc1 Rc8 $16) 27... Qh4) 27. Rxc7 {[%emt 0:00:01]} Rc8 {[%emt 0:00:01]} 28. Rd7 {[%emt 0:00:02]} Qf8 {[%emt 0:00:06] [#]} 29. h4 $2 {[%emt 0:00:05]} ({Less strong is} 29. Rxa7 Rc2 $11) (29. e4 $1 $18) 29... f6 $2 {[%emt 0:00:02][%mdl 8192]} (29... Nf5 $1 $11 {and Black stays safe.} 30. Qf2 (30. Rxa7 $2 Qa3 $19) 30... gxh4) 30. Ng4 $2 {[%emt 0:00:34]} (30. Qb1 $18 {[%csl Gd7][%cal Rb1h7] and White stays clearly on top.} Nf5 31. Ng4) 30... Rd8 $2 {[%emt 0:00:02][%mdl 8192]} (30... f5 $16 {is tougher.} 31. Ne5 g4) 31. hxg5 $2 $40 {[%emt 0:00:10][%mdl 128] White attacks with force.} fxg5 $2 {[%emt 0:00:02][%mdl 8192]} (31... Rxd7 $16 32. Nxf6+ Kg7) 32. Rxa7 {[%emt 0:00:08] Qb1 is the strong threat.} Nf5 {[%emt 0:00:01]} 33. Qb1 {[%emt 0:00:03] Threatens to win with Qb5.} Qd6 {[%emt 0:00:01] [#]} (33... Rc8 $18 34. Qxb6 Qd6 35. Nf6+ Kf8 36. Nh7+ Ke8 37. Qxd6 Nxd6 38. Nxg5 Rc3) 34. Nh6+ $1 {[%emt 0:00:02][%mdl 512]} Kf8 {[%emt 0:00:04]} 35. Nxf5 {[%emt 0:00:03] Weighted Error Value: White=0.61/Black=0.84} 1-0

[Event "Susha Chess Blitz 2022"]
[Site "Shusha"]
[Date "2022.09.24"]
[Round "4"]
[White "Kasimdzhanov, Rustam"]
[Black "Wang, Hao"]
[Result "1/2-1/2"]
[ECO "B40"]
[WhiteElo "2670"]
[BlackElo "2722"]
[Annotator "TA"]
[PlyCount "104"]
[EventDate "2022.09.24"]
[EventType "tourn"]
[EventCountry "AZE"]
[SourceTitle "playchess.com"]
[Source "ChessBase"]
[SourceQuality "1"]
[TimeControl "180+2"]

{[%evp 13,104,0,3,4,14,5,12,0,0,0,0,-19,0,-22,-10,-20,-6,-32,-29,-30,-31,-44,-46,-48,-45,-45,-37,-71,-61,-58,-52,-45,-43,-52,-47,-91,-79,-75,0,-92,-60,-108,-93,-114,-96,-97,-84,-106,-114,-102,-52,-100,-87,-104,0,0,0,0,0,0,0,0,-8,-65,0,0,0,0,0,0,0,0,0,0,0,0,0,0,0,0,0,0,0,-8,0,-8,-8,-8,0,-8,-8,-8,0]} 1. e4 {[%emt 0:00:00]} c5 {[%emt 0:00:01]} 2. Nf3 {[%emt 0:00:02]} e6 {[%emt 0:00:01]} 3. c3 {[%emt 0:00:01]} Nf6 {[%emt 0:00:03]} 4. e5 {[%emt 0:00:01]} Nd5 {[%emt 0:00:01]} 5. Bc4 {[%emt 0:00:00]} d6 {[%emt 0:00:07]} 6. d4 {[%emt 0:00:04]} cxd4 {[%emt 0:00:03]} 7. cxd4 {[%emt 0:00:02]} Be7 {[%emt 0:00:03]} 8. O-O {[%emt 0:00:03] B22: Sicilian: 2 c3.} O-O {[%emt 0:00:02]} 9. Qe2 {[%emt 0:00:06]} b6 {[%emt 0:00:02]} 10. Nc3 {[%emt 0:00:08]} Nxc3 {[%emt 0:00:03]} 11. bxc3 {[%emt 0:00:01]} Bb7 {[%emt 0:00:01]} 12. Bf4 {[%emt 0:00:04]} Qc7 {[%emt 0:00:25]} 13. Bd3 {[%emt 0:00:10]} Nd7 {[%emt 0:00:03]} 14. Rfe1 {[%emt 0:00:46]} Rac8 {[%emt 0:00:27]} 15. Rac1 {[%emt 0:00:25]} Bxf3 {[%emt 0:00:50]} 16. Qxf3 {[%emt 0:00:03] [#] Black must now prevent Qg3.} dxe5 {[%emt 0:00:01]} 17. dxe5 {[%emt 0:00:02][%cal Oh2h4]} Rfd8 {[%emt 0:00:02] [#]} 18. Ba6 $146 {[%emt 0:00:25]} ({Predecessor:} 18. h4 Qc6 19. Be4 Qc4 20. h5 Nc5 21. Bb1 Rd7 22. Re3 Rcd8 23. Rf1 Nd3 24. Re4 {1-0 (43) Schmidt,K (2247)-Alquist,E (2035) Helsingor 2018}) 18... Rb8 {[%emt 0:00:01]} 19. Bb5 {[%emt 0:00:06]} Nf8 {[%emt 0:00:10]} 20. h3 {[%emt 0:00:10]} Rd5 {[%emt 0:00:12]} 21. c4 {[%emt 0:00:11]} Rd4 {[%emt 0:00:02]} 22. Be3 {[%emt 0:00:06]} Rdd8 {[%emt 0:00:02]} 23. Qe4 {[%emt 0:00:03]} Ng6 {[%emt 0:00:06]} 24. Rcd1 {[%emt 0:00:23]} Bc5 {[%emt 0:00:08]} (24... Nxe5 $6 25. Bf4 f6 26. Bxe5 fxe5 27. Qg4 $11) 25. Bg5 {[%emt 0:00:14]} Be7 {[%emt 0:00:12]} 26. Be3 {[%emt 0:00:04]} h6 {[%emt 0:00:06]} (26... Nxe5 $6 27. Bf4 f6 28. Bxe5 fxe5 29. Qg4 $11) 27. Kh1 {[%emt 0:00:03]} (27. f4 $15) 27... Bc5 {[%emt 0:00:08]} ({Of course not} 27... Qxe5 $6 28. Qxe5 Nxe5 29. Bf4 $15) (27... Nxe5 $6 28. Bf4 f6 29. Bxe5 Qxe5 30. Qxe5 fxe5 31. Bd7 $11) 28. f4 {[%emt 0:00:02]} Bxe3 {[%emt 0:00:03]} 29. Qxe3 {[%emt 0:00:01][%cal Of4f5]} Ne7 {[%emt 0:00:07]} 30. g4 {[%emt 0:00:01]} Rxd1 {[%emt 0:00:04]} 31. Rxd1 {[%emt 0:00:01] [#]} Rd8 {[%emt 0:00:01] Prevents Rd7.} (31... a6 $1 $17 {[%cal Ra6b5]} 32. Ba4 (32. Bxa6 $2 Qc6+ 33. Kg1 Qa4 $19) 32... Qxc4) 32. Rd4 {[%emt 0:00:03]} (32. Rxd8+ $15 Qxd8 33. Ba4) 32... Rxd4 {[%emt 0:00:05]} (32... Qb7+ {with more complications.} 33. Kh2 Rxd4 34. Qxd4 Ng6) 33. Qxd4 $17 {[%emt 0:00:01][%mdl 4096] Endgame KQB-KQN} g5 {[%emt 0:00:02]} (33... Ng6 $17 {And now ...Qb7+ would win.} 34. Kh2 Qe7) 34. fxg5 $1 $11 {[%emt 0:00:13]} hxg5 {[%emt 0:00:03]} 35. Qd6 {[%emt 0:00:02]} Qb7+ {[%emt 0:00:02]} 36. Kg1 {[%emt 0:00:01] Active counter play!} Kg7 {[%emt 0:00:04]} 37. Qd8 {[%emt 0:00:02]} Ng6 {[%emt 0:00:09] aiming for ...a6.} 38. Qxg5 {[%emt 0:00:02]} (38. Qf6+ $11 Kg8 39. Qxg5 (39. Qd8+ Kh7 $15)) 38... Qf3 {[%emt 0:00:03]} (38... a6 $15 39. Qf6+ Kg8) 39. Qf6+ $1 {[%emt 0:00:05] The position is equal.} Qxf6 {[%emt 0:00:01]} 40. exf6+ {[%emt 0:00:01]} Kxf6 {[%emt 0:00:01] KB-KN} 41. Kf2 {[%emt 0:00:01]} Kg5 {[%emt 0:00:03] ...Kh4 is the strong threat.} 42. Kg3 {[%emt 0:00:02]} f5 {[%emt 0:00:06]} 43. gxf5 {[%emt 0:00:02]} exf5 {[%emt 0:00:01]} 44. Bd7 {[%emt 0:00:02]} f4+ {[%emt 0:00:02]} 45. Kf2 {[%emt 0:00:01]} Ne5 {[%emt 0:00:02]} 46. Be6 {[%emt 0:00:02]} Kh4 {[%emt 0:00:03]} 47. Kg2 {[%emt 0:00:02]} Kg5 {[%emt 0:00:03]} 48. Kf2 {[%emt 0:00:01]} a5 {[%emt 0:00:01]} 49. a3 {[%emt 0:00:02]} Kf6 {[%emt 0:00:03]} 50. Bd5 {[%emt 0:00:02]} Kg5 {[%emt 0:00:01]} 51. Be6 {[%emt 0:00:01]} Kh4 {[%emt 0:00:03]} 52. Kg2 {[%emt 0:00:01]} Kg5 {Weighted Error Value: White=0.10 (very precise) /Black=0.12 (very precise)} 1/2-1/2